fUSD/lending_fUSD_20250524
["ID","MTS","AMOUNT","RATE_DAILY","PERIOD"]
[362215298,1748109082156,-426.91552214,0.0001926,2]
[362215299,1748109082166,-511.77945381,0.0001926,2]
[362215300,1748109082349,-427.11353859,0.0001926,2]
[362215301,1748109082359,-420.0,0.0001926,2]
[362215302,1748109082371,-7257.56,0.0001926,2]
[362215303,1748109082382,-420.0,0.0001926,2]
[362215304,1748109082392,-470.21281493,0.0001926,2]
[362215305,1748109082403,-432.06079394,0.0001926,2]
[362215306,1748109082414,-502.73767204,0.0001926,2]
[362215307,1748109082425,-443.46,0.0001926,2]
[362215308,1748109082436,-420.0,0.0001926,2]
[362215309,1748109082446,-420.0,0.0001926,2]
[362215310,1748109082455,-250.0,0.0001926,2]
[362215311,1748109082465,-420.0,0.0001926,2]
[362215312,1748109082475,-420.0,0.0001926,2]
[362215313,1748109082484,-420.0,0.0001926,2]
[362215314,1748109082495,-420.0,0.0001926,2]
[362215315,1748109082505,-17506.37,0.0001926,2]
[362215316,1748109082515,-431.80051315,0.0001926,2]
[362215317,1748109082525,-420.0,0.0001926,2]
[362215318,1748109082536,-428.01644211,0.0001926,2]
[362215319,1748109082546,-420.0,0.0001926,2]
[362215320,1748109082556,-420.0,0.0001926,2]
[362215321,1748109082565,-424.09,0.0001926,2]
[362215322,1748109082577,-427.86199486,0.0001926,2]
[362215323,1748109082586,-437.55930265,0.0001926,2]
[362215324,1748109082596,-420.0,0.0001926,2]
[362215325,1748109082607,-420.0,0.0001926,2]
[362215326,1748109082617,-420.0,0.0001926,2]
[362215327,1748109082626,-1778.25,0.0001926,2]
[362215328,1748109082636,-420.0,0.0001926,2]
[362215329,1748109082646,-420.0,0.0001926,2]
[362215330,1748109082657,-505.71517681,0.0001926,2]
[362215331,1748109082666,-420.0,0.0001926,2]
[362215332,1748109082677,-420.0,0.0001926,2]
[362215333,1748109082686,-420.0,0.0001926,2]
[362215334,1748109082697,-2104.45,0.0001926,2]
[362215335,1748109082707,-426.89947891,0.0001926,2]
[362215336,1748109082717,-420.0,0.0001926,2]
[362215337,1748109082727,-420.0,0.0001926,2]
[362215338,1748109082736,-485.06343076,0.0001926,2]
[362215339,1748109082747,-1661.53,0.0001926,2]
[362215340,1748109082756,-427.06972904,0.0001926,2]
[362215341,1748109082766,-420.0,0.0001926,2]
[362215342,1748109082775,-420.0,0.0001926,2]
[362215343,1748109082785,-480.59960526,0.0001926,2]
[362215344,1748109082794,-426.37488802,0.0001926,2]
[362215345,1748109082804,-420.0,0.0001926,2]
[362215346,1748109082813,-420.0,0.0001926,2]
[362215347,1748109082822,-431.38544339,0.0001926,2]
[362215348,1748109082832,-420.0,0.0001926,2]
[362215349,1748109082842,-420.0,0.0001926,2]
[362215350,1748109082851,-539.45,0.0001926,2]
[362215351,1748109082860,-420.0,0.0001926,2]
[362215352,1748109082871,-420.0,0.0001926,2]
[362215353,1748109082880,-420.0,0.0001926,2]
[362215354,1748109082891,-420.0,0.0001926,2]
[362215355,1748109082901,-420.0,0.0001926,2]
[362215356,1748109082910,-429.85232722,0.0001926,2]
[362215357,1748109082922,-420.0,0.0001926,2]
[362215358,1748109082932,-420.0,0.0001926,2]
[362215359,1748109082941,-428.84702261,0.0001926,2]
[362215360,1748109082954,-427.1827452,0.0001926,2]
[362215361,1748109082963,-434.22198371,0.0001926,2]
[362215362,1748109082974,-420.0,0.0001926,2]
[362215363,1748109082983,-420.0,0.0001926,2]
[362215364,1748109082993,-420.0,0.0001926,2]
[362215365,1748109083002,-420.0,0.0001926,2]
[362215366,1748109083011,-420.0,0.0001926,2]
[362215367,1748109083021,-247177.75,0.0001926,2]
[362215368,1748109083030,-5399.91,0.0001926,2]
[362215369,1748109083039,-420.0,0.0001926,2]
[362215370,1748109083048,-429.65109677,0.0001926,2]
[362215371,1748109083058,-426.73484599,0.0001926,2]
[362215372,1748109083067,-420.0,0.0001926,2]
[362215373,1748109083077,-489.06,0.0001926,2]
[362215374,1748109083086,-3466.19,0.0001926,2]
[362215375,1748109083096,-420.0,0.0001926,2]
[362215376,1748109083106,-420.0,0.0001926,2]
[362215377,1748109083115,-420.0,0.0001926,2]
[362215378,1748109083124,-420.0,0.0001926,2]
[362215379,1748109083134,-420.0,0.0001926,2]
[362215380,1748109083143,-420.0,0.0001926,2]
[362215381,1748109083153,-3163.06,0.0001926,2]
[362215382,1748109083162,-1653.38,0.0001926,2]
[362215383,1748109083172,-420.0,0.0001926,2]
[362215384,1748109083181,-420.0,0.0001926,2]
[362215385,1748109083191,-431.72583578,0.0001926,2]
[362215386,1748109083200,-527.92482236,0.0001926,2]
[362215387,1748109083210,-420.0,0.0001926,2]
[362215388,1748109083219,-420.0,0.0001926,2]
[362215389,1748109083228,-3018.52,0.0001926,2]
[362215390,1748109083238,-420.0,0.0001926,2]
[362215391,1748109083249,-420.0,0.0001926,2]
[362215392,1748109083259,-3197.4,0.0001926,2]
[362215393,1748109083268,-420.0,0.0001926,2]
[362215394,1748109083278,-420.0,0.0001926,2]
[362215395,1748109083288,-420.0,0.0001926,2]
[362215396,1748109083297,-420.0,0.0001926,2]
[362215397,1748109083306,-508.31,0.0001926,2]
[362215398,1748109083315,-420.0,0.0001926,2]
[362215399,1748109083325,-420.0,0.0001926,2]
[362215400,1748109083335,-7674.63,0.0001926,2]
[362215401,1748109083344,-420.0,0.0001926,2]
[362215402,1748109083353,-420.0,0.0001926,2]
[362215403,1748109083363,-420.0,0.0001926,2]
[362215404,1748109083373,-1467.56,0.0001926,2]
[362215405,1748109083383,-420.0,0.0001926,2]
[362215406,1748109083392,-420.0,0.0001926,2]
[362215407,1748109083403,-420.0,0.0001926,2]
[362215408,1748109083413,-420.0,0.0001926,2]
[362215409,1748109083423,-420.0,0.0001926,2]
[362215410,1748109083433,-734.7,0.0001926,2]
[362215411,1748109083442,-3712.64,0.0001926,2]
[362215412,1748109083452,-420.0,0.0001926,2]
[362215413,1748109083461,-420.0,0.0001926,2]
[362215414,1748109083471,-420.0,0.0001926,2]
[362215415,1748109083480,-420.0,0.0001926,2]
[362215416,1748109083490,-420.0,0.0001926,2]
[362215417,1748109083500,-420.0,0.0001926,2]
[362215418,1748109083510,-435.85754153,0.0001926,2]
[362215419,1748109083520,-420.0,0.0001926,2]
[362215420,1748109083529,-420.0,0.0001926,2]
[362215421,1748109083539,-438.03400904,0.0001926,2]
[362215422,1748109083548,-420.0,0.0001926,2]
[362215423,1748109083558,-420.0,0.0001926,2]
[362215424,1748109083568,-420.0,0.0001926,2]
[362215425,1748109083578,-7219.46,0.0001926,2]
[362215426,1748109083588,-420.0,0.0001926,2]
[362215427,1748109083598,-420.0,0.0001926,2]
[362215428,1748109083609,-420.0,0.0001926,2]
[362215429,1748109083620,-420.0,0.0001926,2]
[362215430,1748109083631,-177.10441233,0.0001926,2]
[362215431,1748109083642,-420.0,0.0001926,2]
[362215432,1748109083654,-420.0,0.0001926,2]
[362215433,1748109083663,-420.0,0.0001926,2]
[362215434,1748109083673,-420.0,0.0001926,2]
[362215435,1748109083683,-420.0,0.0001926,2]
[362215436,1748109083693,-420.0,0.0001926,2]
[362215437,1748109083703,-420.0,0.0001926,2]
[362215438,1748109083713,-420.0,0.0001926,2]
[362215439,1748109083723,-420.0,0.0001926,2]
[362215440,1748109083733,-1007.27,0.0001926,2]
[362215441,1748109083744,-420.0,0.0001926,2]
[362215442,1748109083756,-420.0,0.0001926,2]
[362215443,1748109083767,-420.0,0.0001926,2]
[362215444,1748109083777,-420.0,0.0001926,2]
[362215445,1748109083788,-420.0,0.0001926,2]
[362215446,1748109083799,-426.00945636,0.0001926,2]
[362215447,1748109083809,-420.0,0.0001926,2]
[362215448,1748109083819,-420.0,0.0001926,2]
[362215449,1748109083831,-420.0,0.0001926,2]
[362215450,1748109083843,-420.0,0.0001926,2]
[362215451,1748109083855,-420.0,0.0001926,2]
[362215452,1748109083866,-420.0,0.0001926,2]
[362215453,1748109083878,-786.02,0.0001926,2]
[362215454,1748109083888,-420.0,0.0001926,2]
[362215455,1748109083897,-420.0,0.0001926,2]
[362215456,1748109083907,-2801.9,0.0001926,2]
[362215457,1748109083916,-453.96465469,0.0001926,2]
[362215458,1748109083927,-9905.5,0.0001926,2]
[362215459,1748109083939,-420.0,0.0001926,2]
[362215460,1748109083949,-420.0,0.0001926,2]
[362215461,1748109083959,-420.0,0.0001926,2]
[362215462,1748109083969,-430.84729626,0.0001926,2]
[362215463,1748109083980,-420.0,0.0001926,2]
[362215464,1748109083989,-946.51,0.0001926,2]
[362215465,1748109083999,-420.0,0.0001926,2]
[362215466,1748109084009,-523.72598001,0.0001926,2]
[362215467,1748109084018,-671.36,0.0001926,2]
[362215468,1748109084029,-908.96,0.0001926,2]
[362215469,1748109084038,-420.0,0.0001926,2]
[362215470,1748109084049,-151.36864917,0.0001926,2]
[362215471,1748109084059,-420.0,0.0001926,2]
[362215472,1748109084068,-420.0,0.0001926,2]
[362215473,1748109084079,-12897.3,0.0001926,2]
[362215474,1748109084089,-420.0,0.0001926,2]
[362215475,1748109084099,-448.92,0.0001926,2]
[362215476,1748109084110,-491.30005191,0.0001926,2]
[362215477,1748109084120,-420.0,0.0001926,2]
[362215478,1748109084129,-420.0,0.0001926,2]
[362215479,1748109084140,-332.17512439,0.0001926,2]
[362215480,1748109084151,-436.51918501,0.0001926,2]
[362215481,1748109084161,-420.0,0.0001926,2]
[362215482,1748109084172,-420.0,0.0001926,2]
[362215483,1748109084183,-420.0,0.0001926,2]
[362215484,1748109084195,-420.0,0.0001926,2]
[362215485,1748109084204,-784.21,0.0001926,2]
[362215486,1748109084213,-420.0,0.0001926,2]
[362215487,1748109084223,-473.14611456,0.0001926,2]
[362215488,1748109084232,-420.0,0.0001926,2]
[362215489,1748109084242,-564.34515101,0.0001926,2]
[362215490,1748109084256,-465.84518046,0.0001926,2]
[362215491,1748109084265,-420.0,0.0001926,2]
[362215492,1748109084275,-420.0,0.0001926,2]
[362215493,1748109084285,-3828.19,0.0001926,2]
[362215494,1748109084295,-424.18634037,0.0001926,2]
[362215495,1748109084304,-420.0,0.0001926,2]
[362215496,1748109084314,-420.0,0.0001926,2]
[362215497,1748109084324,-336.16849461,0.0001926,2]
[362215498,1748109084333,-420.0,0.0001926,2]
[362215499,1748109084343,-420.0,0.0001926,2]
[362215500,1748109084353,-553.19,0.0001926,2]
[362215501,1748109084362,-420.0,0.0001926,2]
[362215502,1748109084372,-420.0,0.0001926,2]
[362215503,1748109084383,-420.0,0.0001926,2]
[362215504,1748109084393,-9974.47,0.0001926,2]
[362215505,1748109084404,-420.0,0.0001926,2]
[362215506,1748109084415,-434.97623243,0.0001926,2]
[362215507,1748109084424,-319.79893005,0.0001926,2]
[362215508,1748109084433,-420.0,0.0001926,2]
[362215509,1748109084443,-420.0,0.0001926,2]
[362215510,1748109084453,-458.55,0.0001926,2]
[362215511,1748109084463,-420.0,0.0001926,2]
[362215512,1748109084473,-420.0,0.0001926,2]
[362215513,1748109084483,-420.0,0.0001926,2]
[362215514,1748109084492,-420.0,0.0001926,2]
[362215515,1748109084503,-3803.11,0.0001926,2]
[362215516,1748109084512,-444.17416135,0.0001926,2]
[362215517,1748109084522,-420.0,0.0001926,2]
[362215518,1748109084532,-505.49870276,0.0001926,2]
[362215519,1748109084542,-420.0,0.0001926,2]
[362215520,1748109084551,-420.0,0.0001926,2]
[362215521,1748109084561,-420.0,0.0001926,2]
[362215522,1748109084570,-326.49213767,0.0001926,2]
[362215523,1748109084580,-254.86024306,0.0001926,2]
[362215524,1748109084590,-500.26046329,0.0001926,2]
[362215525,1748109084599,-420.0,0.0001926,2]
[362215526,1748109084608,-420.0,0.0001926,2]
[362215527,1748109084619,-420.0,0.0001926,2]
[362215528,1748109084628,-420.0,0.0001926,2]
[362215529,1748109084638,-443.51,0.0001926,2]
[362215530,1748109084648,-420.0,0.0001926,2]
[362215531,1748109084658,-7438.76,0.0001926,2]
[362215532,1748109084667,-420.0,0.0001926,2]
[362215533,1748109084677,-429.36404191,0.0001926,2]
[362215534,1748109084686,-420.0,0.0001926,2]
[362215535,1748109084696,-5443.58,0.0001926,2]
[362215536,1748109084705,-431.40683145,0.0001926,2]
[362215537,1748109084716,-688.39,0.0001926,2]
[362215538,1748109084726,-420.0,0.0001926,2]
[362215539,1748109084737,-687.96,0.0001926,2]
[362215540,1748109084747,-420.0,0.0001926,2]
[362215541,1748109084757,-420.0,0.0001926,2]
[362215542,1748109084766,-420.0,0.0001926,2]
[362215543,1748109084775,-420.0,0.0001926,2]
[362215544,1748109084785,-420.0,0.0001926,2]
[362215545,1748109084794,-422.57099396,0.0001926,2]
[362215546,1748109084803,-420.0,0.0001926,2]
[362215547,1748109084813,-420.0,0.0001926,2]
[362215548,1748109084823,-3607.83,0.0001926,2]
[362215549,1748109084833,-438.47112097,0.0001926,2]
[362215550,1748109084842,-420.0,0.0001926,2]
[362215551,1748109084852,-758.62,0.0001926,2]
[362215552,1748109084863,-215.99619544,0.0001926,2]
[362215553,1748109084872,-451.77,0.0001926,2]
[362215554,1748109084882,-420.0,0.0001926,2]
[362215555,1748109084892,-420.0,0.0001926,2]
[362215556,1748109084902,-420.0,0.0001926,2]
[362215557,1748109084912,-420.0,0.0001926,2]
[362215558,1748109084922,-426.36169883,0.0001926,2]
[362215559,1748109084932,-420.0,0.0001926,2]
[362215560,1748109084942,-420.0,0.0001926,2]
[362215561,1748109084951,-420.0,0.0001926,2]
[362215562,1748109084963,-569.31908897,0.0001926,2]
[362215563,1748109084973,-420.0,0.0001926,2]
[362215564,1748109084982,-420.0,0.0001926,2]
[362215565,1748109084992,-424.67069697,0.0001926,2]
[362215566,1748109085001,-420.0,0.0001926,2]
[362215567,1748109085010,-420.0,0.0001926,2]
[362215568,1748109085020,-420.0,0.0001926,2]
[362215569,1748109085029,-420.0,0.0001926,2]
[362215570,1748109085039,-432.65298847,0.0001926,2]
[362215571,1748109085048,-420.0,0.0001926,2]
[362215572,1748109085057,-420.0,0.0001926,2]
[362215573,1748109085068,-500.0,0.00019273,2]
[362215574,1748109085078,-500.0,0.00019273,2]
[362215575,1748109085087,-500.0,0.00019273,2]
[362215576,1748109085097,-502.28145813,0.00019273,2]
[362215577,1748109085106,-153.04768091,0.00019273,2]
[362215578,1748109085115,-500.74291645,0.00019273,2]
[362215579,1748109085125,-500.0,0.00019273,2]
[362215580,1748109085134,-500.0,0.00019273,2]
[362215581,1748109085144,-502.92060005,0.00019273,2]
[362215582,1748109085153,-397.50677126,0.00019277,2]
[362215583,1748109085165,-420.0,0.00019287,2]
[362215584,1748109085176,-420.0,0.00019287,2]
[362215585,1748109085186,-420.0,0.00019287,2]
[362215586,1748109085197,-420.0,0.00019287,2]
[362215587,1748109085207,-420.0,0.00019287,2]
[362215588,1748109085217,-447.93220593,0.00019287,2]
[362215589,1748109085228,-420.0,0.00019287,2]
[362215590,1748109085237,-404.52552745,0.00019287,2]
[362215591,1748109085250,-420.0,0.00019287,2]
[362215592,1748109085260,-420.0,0.00019287,2]
[362215593,1748109085269,-420.0,0.00019287,2]
[362215594,1748109085279,-420.0,0.00019287,2]
[362215595,1748109085290,-246.15342243,0.00019287,2]
[362215596,1748109085300,-420.0,0.00019287,2]
[362215597,1748109085309,-420.0,0.00019287,2]
[362215598,1748109085319,-420.0,0.00019287,2]
[362215599,1748109085328,-458.83721203,0.00019287,2]
[362215600,1748109085338,-420.0,0.00019287,2]
[362215601,1748109085350,-420.0,0.00019287,2]
[362215602,1748109085362,-427.32724702,0.00019287,2]
[362215603,1748109085373,-420.0,0.00019287,2]
[362215604,1748109085383,-420.0,0.00019287,2]
[362215605,1748109085394,-570.8,0.00019287,2]
[362215606,1748109085403,-382.19688418,0.00019287,2]
[362215607,1748109085413,-420.0,0.00019287,2]
[362215608,1748109085424,-420.0,0.00019287,2]
[362215609,1748109085433,-420.0,0.00019287,2]
[362215610,1748109085443,-420.0,0.00019287,2]
[362215611,1748109085453,-420.0,0.00019287,2]
[362215612,1748109085462,-420.0,0.00019287,2]
[362215613,1748109085471,-420.0,0.00019287,2]
[362215614,1748109085481,-420.0,0.00019287,2]
[362215615,1748109085491,-420.0,0.00019287,2]
[362215616,1748109085500,-420.0,0.00019287,2]
[362215617,1748109085509,-420.0,0.00019287,2]
[362215618,1748109085518,-420.0,0.00019287,2]
[362215619,1748109085527,-186.457943,0.00019287,2]
[362215620,1748109085536,-427.81538761,0.00019287,2]
[362215621,1748109085546,-420.0,0.00019287,2]
[362215622,1748109085555,-420.0,0.00019287,2]
[362215623,1748109085564,-420.0,0.00019287,2]
[362215624,1748109085573,-420.0,0.00019287,2]
[362215625,1748109085583,-420.0,0.00019287,2]
[362215626,1748109085592,-174.37964108,0.00019287,2]
[362215627,1748109085602,-430.83984231,0.00019287,2]
[362215628,1748109085611,-432.87296057,0.00019287,2]
[362215629,1748109085621,-420.0,0.00019287,2]
[362215630,1748109085630,-420.0,0.00019287,2]
[362215631,1748109085639,-420.0,0.00019287,2]
[362215632,1748109085649,-420.0,0.00019287,2]
[362215633,1748109085659,-420.0,0.00019287,2]
[362215634,1748109085668,-420.0,0.00019287,2]
[362215635,1748109085678,-420.0,0.00019287,2]
[362215636,1748109085688,-420.0,0.00019287,2]
[362215637,1748109085697,-420.0,0.00019287,2]
[362215638,1748109085707,-420.0,0.00019287,2]
[362215639,1748109085716,-420.0,0.00019287,2]
[362215640,1748109085726,-454.01344983,0.00019287,2]
[362215641,1748109085735,-277.66249732,0.00019287,2]
[362215642,1748109085746,-420.0,0.00019287,2]
[362215643,1748109085757,-420.0,0.00019287,2]
[362215644,1748109085767,-420.0,0.00019287,2]
[362215645,1748109085777,-444.41100251,0.00019287,2]
[362215646,1748109085787,-780.83,0.00019287,2]
[362215647,1748109085797,-420.0,0.00019287,2]
[362215648,1748109085807,-420.0,0.00019287,2]
[362215649,1748109085817,-574.99,0.00019287,2]
[362215650,1748109085827,-2025.49065005,0.00019287,2]
[362215651,1748109085838,-420.0,0.00019287,2]
[362215652,1748109085850,-420.0,0.00019287,2]
[362215653,1748109085859,-540.08,0.00019287,2]
[362215654,1748109085868,-420.0,0.00019287,2]
[362215655,1748109085877,-420.0,0.00019287,2]
[362215656,1748109085887,-406.42490167,0.00019287,2]
[362215657,1748109085898,-420.0,0.00019287,2]
[362215658,1748109085908,-420.0,0.00019287,2]
[362215659,1748109085917,-226.30529847,0.00019287,2]
[362215660,1748109085926,-420.0,0.00019287,2]
[362215661,1748109085935,-420.0,0.00019287,2]
[362215662,1748109085945,-427.84817996,0.00019287,2]
[362215663,1748109085955,-420.0,0.00019287,2]
[362215664,1748109085964,-439.09207273,0.00019287,2]
[362215665,1748109085974,-514.54117639,0.00019287,2]
[362215666,1748109085984,-420.0,0.00019287,2]
[362215667,1748109085994,-420.0,0.00019287,2]
[362215668,1748109086003,-420.0,0.00019287,2]
[362215669,1748109086014,-420.0,0.00019287,2]
[362215670,1748109086023,-455.1,0.00019287,2]
[362215671,1748109086033,-420.0,0.00019287,2]
[362215672,1748109086044,-420.0,0.00019287,2]
[362215673,1748109086054,-463.32340476,0.00019287,2]
[362215674,1748109086064,-354.9643528,0.00019287,2]
[362215675,1748109086073,-420.0,0.00019287,2]
[362215676,1748109086084,-420.0,0.00019287,2]
[362215677,1748109086094,-420.0,0.00019287,2]
[362215678,1748109086103,-1284.61,0.00019287,2]
[362215679,1748109086114,-420.0,0.00019287,2]
[362215680,1748109086125,-420.0,0.00019287,2]
[362215681,1748109086136,-420.0,0.00019287,2]
[362215682,1748109086147,-420.0,0.00019287,2]
[362215683,1748109086158,-420.0,0.00019287,2]
[362215684,1748109086169,-419.11674444,0.00019287,2]
[362215685,1748109086179,-420.0,0.00019287,2]
[362215686,1748109086190,-420.0,0.00019287,2]
[362215687,1748109086200,-420.0,0.00019287,2]
[362215688,1748109086211,-420.0,0.00019287,2]
[362215689,1748109086220,-420.0,0.00019287,2]
[362215690,1748109086230,-420.0,0.00019287,2]
[362215691,1748109086241,-420.0,0.00019287,2]
[362215692,1748109086253,-420.0,0.00019287,2]
[362215693,1748109086264,-420.0,0.00019287,2]
[362215694,1748109086446,-420.0,0.00019287,2]
[362215695,1748109086459,-420.0,0.00019287,2]
[362215696,1748109086469,-420.0,0.00019287,2]
[362215697,1748109086479,-389.42593539,0.00019287,2]
[362215698,1748109086489,-420.0,0.00019287,2]
[362215699,1748109086499,-423.3144339,0.00019287,2]
[362215700,1748109086509,-420.0,0.00019287,2]
[362215701,1748109086519,-420.0,0.00019287,2]
[362215702,1748109086529,-420.0,0.00019287,2]
[362215703,1748109086538,-420.0,0.00019287,2]
[362215704,1748109086549,-254.13272928,0.00019287,2]
[362215705,1748109086558,-420.0,0.00019287,2]
[362215706,1748109086567,-420.0,0.00019287,2]
[362215707,1748109086577,-420.0,0.00019287,2]
[362215708,1748109086586,-420.0,0.00019287,2]
[362215709,1748109086598,-420.0,0.00019287,2]
[362215710,1748109086609,-420.0,0.00019287,2]
[362215711,1748109086619,-420.0,0.00019287,2]
[362215712,1748109086629,-420.0,0.00019287,2]
[362215713,1748109086639,-420.0,0.00019287,2]
[362215714,1748109086649,-420.0,0.00019287,2]
[362215715,1748109086660,-559.1001602,0.00019287,2]
[362215716,1748109086671,-420.0,0.00019287,2]
[362215717,1748109086682,-420.0,0.00019287,2]
[362215718,1748109086691,-420.0,0.00019287,2]
[362215719,1748109086702,-431.25161711,0.00019287,2]
[362215720,1748109086711,-420.0,0.00019287,2]
[362215721,1748109086722,-420.0,0.00019287,2]
[362215722,1748109086731,-1656.56,0.00019287,2]
[362215723,1748109086742,-420.0,0.00019287,2]
[362215724,1748109086753,-420.0,0.00019287,2]
[362215725,1748109086764,-436.01,0.00019287,2]
[362215726,1748109086775,-420.0,0.00019287,2]
[362215727,1748109086786,-420.0,0.00019287,2]
[362215728,1748109086796,-420.0,0.00019287,2]
[362215729,1748109086811,-420.0,0.00019287,2]
[362215730,1748109086820,-380.79448363,0.00019287,2]
[362215731,1748109086830,-420.0,0.00019287,2]
[362215732,1748109086841,-420.0,0.00019287,2]
[362215733,1748109086852,-420.0,0.00019287,2]
[362215734,1748109086862,-420.0,0.00019287,2]
[362215735,1748109086872,-420.0,0.00019287,2]
[362215736,1748109086883,-1934.37,0.00019287,2]
[362215737,1748109086894,-420.0,0.00019287,2]
[362215738,1748109086904,-420.0,0.00019287,2]
[362215739,1748109086913,-420.0,0.00019287,2]
[362215740,1748109086922,-420.0,0.00019287,2]
[362215741,1748109086931,-420.0,0.00019287,2]
[362215742,1748109086941,-420.0,0.00019287,2]
[362215743,1748109086950,-420.0,0.00019287,2]
[362215744,1748109086959,-420.0,0.00019287,2]
[362215745,1748109086969,-420.0,0.00019287,2]
[362215746,1748109086979,-420.0,0.00019287,2]
[362215747,1748109086987,-420.0,0.00019287,2]
[362215748,1748109086997,-420.0,0.00019287,2]
[362215749,1748109087007,-420.0,0.00019287,2]
[362215750,1748109087018,-420.0,0.00019287,2]
[362215751,1748109087029,-454.46,0.00019287,2]
[362215752,1748109087038,-352.49600779,0.00019287,2]
[362215753,1748109087048,-420.0,0.00019287,2]
[362215754,1748109087059,-2700.79,0.00019287,2]
[362215755,1748109087070,-420.0,0.00019287,2]
[362215756,1748109087079,-420.0,0.00019287,2]
[362215757,1748109087087,-506.80003866,0.00019287,2]
[362215758,1748109087096,-420.0,0.00019287,2]
[362215759,1748109087106,-420.0,0.00019287,2]
[362215760,1748109087115,-420.0,0.00019287,2]
[362215761,1748109087124,-1701.02,0.00019287,2]
[362215762,1748109087133,-420.0,0.00019287,2]
[362215763,1748109087143,-420.0,0.00019287,2]
[362215764,1748109087152,-507.68630314,0.00019287,2]
[362215765,1748109087162,-420.0,0.00019287,2]
[362215766,1748109087173,-420.0,0.00019287,2]
[362215767,1748109087183,-2340.16,0.00019287,2]
[362215768,1748109087193,-420.0,0.00019287,2]
[362215769,1748109087203,-420.0,0.00019287,2]
[362215770,1748109087212,-420.0,0.00019287,2]
[362215771,1748109087223,-246.16797694,0.00019287,2]
[362215772,1748109087234,-420.0,0.00019287,2]
[362215773,1748109087248,-420.0,0.00019287,2]
[362215774,1748109087258,-420.0,0.00019287,2]
[362215775,1748109087269,-420.0,0.00019287,2]
[362215776,1748109087279,-555.32339059,0.00019287,2]
[362215777,1748109087290,-420.0,0.00019287,2]
[362215778,1748109087300,-420.0,0.00019287,2]
[362215779,1748109087311,-420.0,0.00019287,2]
[362215780,1748109087321,-420.0,0.00019287,2]
[362215781,1748109087331,-420.0,0.00019287,2]
[362215782,1748109087340,-329.455551,0.00019287,2]
[362215783,1748109087349,-286.56127369,0.00019287,2]
[362215784,1748109087359,-420.0,0.00019287,2]
[362215785,1748109087369,-420.0,0.00019287,2]
[362215786,1748109087378,-420.0,0.00019287,2]
[362215787,1748109087387,-463.15,0.00019287,2]
[362215788,1748109087396,-314.53587971,0.00019287,2]
[362215789,1748109087405,-420.0,0.00019287,2]
[362215790,1748109087415,-420.0,0.00019287,2]
[362215791,1748109087424,-420.0,0.00019287,2]
[362215792,1748109087433,-420.0,0.00019287,2]
[362215793,1748109087442,-420.0,0.00019287,2]
[362215794,1748109087452,-420.0,0.00019287,2]
[362215795,1748109087462,-420.0,0.00019287,2]
[362215796,1748109087471,-420.0,0.00019287,2]
[362215797,1748109087481,-420.0,0.00019287,2]